bitfinex/quotes_BTCUSD_20260307
["timestamp","ask_amount","ask_price","bid_price","bid_amount"]
[1772880020332,0.0735532,67978.0,67971.0,0.00641357]
[1772880022769,0.0735532,67978.0,67971.0,0.0060746]
[1772880022931,0.0735532,67978.0,67971.0,0.0059051]
[1772880024399,0.0735532,67978.0,67972.0,0.00621357]
[1772880029670,0.0735532,67978.0,67972.0,0.00604406]
[1772880043916,0.0735532,67978.0,67972.0,0.00624406]
[1772880044122,0.07377321,67978.0,67972.0,0.00624406]
[1772880044286,0.07377321,67978.0,67972.0,0.00607453]
[1772880047874,0.07377321,67978.0,67972.0,0.0002]
[1772880051175,0.07376581,67985.0,67973.0,0.00148]
[1772880051343,0.07376581,67985.0,67974.0,0.00625501]
[1772880051344,0.05376581,67985.0,67974.0,0.00625501]
[1772880051548,0.05524581,67985.0,67975.0,0.00625501]
[1772880052463,0.05524581,67985.0,67977.0,0.00625501]
[1772880053651,0.00022001,67978.0,67977.0,0.00625501]
[1772880054705,0.00022001,67978.0,67977.0,0.0798093]
[1772880055895,0.00022001,67978.0,67977.0,0.00625501]
[1772880058773,0.00022001,67978.0,67974.0,0.00625501]
[1772880061282,0.00022001,67978.0,67973.0,0.07355857]
[1772880062148,0.00022001,67978.0,67972.0,0.07375911]
[1772880064159,0.00022001,67985.0,67974.0,0.00558332]
[1772880064363,0.07376569,67985.0,67974.0,0.00558332]
[1772880065619,0.07376569,67985.0,67975.0,0.07503645]
[1772880067436,0.07376569,67985.0,67975.0,0.07355645]
[1772880067635,0.07376569,67985.0,67977.0,0.07355429]
[1772880069151,0.07376569,67985.0,67976.0,0.00148]
[1772880069364,0.07376569,67985.0,67975.0,0.07355645]
[1772880069557,0.07376569,67985.0,67976.0,0.00148]
[1772880070365,0.07376569,67985.0,67975.0,0.07355645]
[1772880070592,0.07376569,67985.0,67976.0,0.00148]
[1772880071431,0.07376569,67985.0,67974.0,0.0793408]
[1772880071658,0.07376569,67985.0,67975.0,0.00148]
[1772880072530,0.07376569,67985.0,67974.0,0.0793408]
[1772880072681,0.07376569,67985.0,67975.0,0.00148]
[1772880073023,0.07376569,67985.0,67974.0,0.0793408]
[1772880073176,0.07376569,67985.0,67975.0,0.00148]
[1772880074004,0.07376569,67985.0,67974.0,0.0793408]
[1772880074180,0.07376569,67985.0,67975.0,0.00148]
[1772880074776,0.07369249,67985.0,67974.0,0.0793408]
[1772880075580,0.07369249,67985.0,67975.0,0.00555947]
[1772880075779,0.00022001,67986.0,67976.0,0.01816893]
[1772880076024,0.07375369,67997.0,67981.0,0.01816893]
[1772880076238,0.07375369,67997.0,67984.0,0.00555947]
[1772880076413,0.07375369,67997.0,67986.0,0.00555947]
[1772880077335,0.00022001,67992.0,67986.0,0.00555947]
[1772880077842,0.00022001,67997.0,67987.0,0.01816893]
[1772880078052,0.00022001,67997.0,67990.0,0.00555947]
[1772880078225,0.00022001,67999.0,67990.0,0.00555947]
[1772880079439,0.07352467,68005.0,67993.0,0.01816893]
[1772880079642,0.07352467,68005.0,67995.0,0.00555947]
[1772880080178,0.07352467,68005.0,67996.0,0.07353373]
[1772880080383,0.07352467,68005.0,67997.0,0.00555947]
[1772880083434,0.07352467,68005.0,67994.0,0.00148]
[1772880083636,0.09215933,68005.0,67995.0,0.00148]
[1772880083855,0.09237934,68005.0,67995.0,0.00148]
[1772880084050,0.09237934,68005.0,67993.0,0.0790962]
[1772880084275,0.09237934,68005.0,67993.0,0.0805762]
[1772880085058,0.09237934,68005.0,67993.0,0.0790962]
[1772880085265,0.09237934,68005.0,67993.0,0.0805762]
[1772880086020,0.09237934,68005.0,67993.0,0.0790962]
[1772880086225,0.09237934,68005.0,67993.0,0.0805762]
[1772880086654,0.09246397,68005.0,67993.0,0.0805762]
[1772880087518,0.09246397,68005.0,67993.0,0.0790962]
[1772880087691,0.09246397,68005.0,67993.0,0.0805762]
[1772880088014,0.09246397,68005.0,67993.0,0.0790962]
[1772880088192,0.09246397,68005.0,67993.0,0.0805762]
[1772880089558,0.09246397,68005.0,67993.0,0.0790962]
[1772880089759,0.09246397,68005.0,67993.0,0.0805762]
[1772880090056,0.07382931,68005.0,67993.0,0.0790962]
[1772880090303,0.01863466,68004.0,67993.0,0.07501673]
[1772880090910,0.07352616,68003.0,67993.0,0.07501673]
[1772880094309,0.07352616,68003.0,67993.0,0.00148]
[1772880094486,0.01876609,68002.0,67993.0,0.00148]
[1772880095314,0.01876609,68002.0,67992.0,0.0002]
[1772880095914,0.07352833,68001.0,67992.0,0.0002]
[1772880097461,0.0244242,68000.0,67987.0,0.07354347]
[1772880097757,0.0244242,68000.0,67989.0,0.00148]
[1772880097967,0.07353049,67999.0,67989.0,0.00148]
[1772880100057,0.07353049,68000.0,67989.0,0.08072398]
[1772880102152,0.07353049,68000.0,67990.0,0.00570277]
[1772880103995,0.07353049,68000.0,67990.0,0.00590277]
[1772880105038,0.07353049,68000.0,67990.0,0.07944264]
[1772880105257,0.07353049,68000.0,67990.0,0.07373987]
[1772880105425,0.07353049,68000.0,67990.0,0.07944264]
[1772880105649,0.07353049,68000.0,67990.0,0.00590277]
[1772880107149,0.07352833,68001.0,67992.0,0.00570277]
[1772880107729,0.07352833,68001.0,67992.0,0.00553321]
[1772880108033,0.07353049,68001.0,67992.0,0.00536368]
[1772880108238,0.07353049,68001.0,67993.0,0.07353698]
[1772880108438,0.07353049,68001.0,67994.0,0.00570277]
[1772880112968,0.07353049,68001.0,67993.0,0.07353698]
[1772880113174,0.07374815,68002.0,67994.0,0.00570277]
[1772880114795,0.07374815,68002.0,67994.0,0.00553324]
[1772880118491,0.07374815,68002.0,67994.0,0.0790691]
[1772880118632,0.07374815,68002.0,67995.0,0.00570277]
[1772880123729,0.07431905,68002.0,67995.0,0.00570277]
[1772880133765,0.01870301,68001.0,67994.0,0.00168]
[1772880134349,0.01870301,68001.0,67994.0,0.0002]
[1772880134780,0.01927391,68001.0,67994.0,0.0002]
[1772880134970,0.01918551,68001.0,67994.0,0.0002]
[1772880136056,0.07352941,68000.0,67994.0,0.0002]
[1772880136665,0.07352941,68000.0,67995.0,0.0051552]
[1772880147419,0.07352941,68000.0,67994.0,0.0002]
[1772880161409,0.00079091,68001.0,67994.0,0.0002]
[1772880161614,0.07431934,68001.0,67994.0,0.0002]
[1772880162014,0.07431934,68001.0,67994.0,0.00537545]
[1772880162647,0.07431934,68001.0,67994.0,0.07891124]
[1772880163319,0.00079091,68001.0,67994.0,0.07891124]
[1772880166398,0.00079091,68001.0,67995.0,0.00517545]
[1772880167529,0.00079091,68001.0,67997.0,0.00517545]
[1772880169636,0.01975732,68001.0,67997.0,0.00148]
[1772880169833,0.01896641,67999.0,67990.0,0.07373914]
[1772880170079,0.01896641,67999.0,67992.0,0.00148]
[1772880170314,0.01941381,67999.0,67992.0,0.00148]
[1772880170452,0.01941381,67999.0,67990.0,0.07373914]
[1772880170866,0.01941381,67999.0,67991.0,0.0750159]
[1772880171088,0.01941381,67999.0,67991.0,0.0735359]
[1772880171333,0.01941381,67999.0,67991.0,0.0750159]
[1772880171686,0.01941381,67999.0,67992.0,0.00148]
[1772880171884,0.01941381,67999.0,67991.0,0.0735359]
[1772880172267,0.01941381,67999.0,67992.0,0.00148]
[1772880172434,0.01941381,67999.0,67991.0,0.0735359]
[1772880172639,0.01941381,67999.0,67992.0,0.00148]
[1772880173243,0.01941381,67999.0,67991.0,0.0735359]
[1772880173445,0.01941381,67999.0,67992.0,0.00148]
[1772880174341,0.09294435,67999.0,67992.0,0.00148]
[1772880174540,0.01896641,67998.0,67992.0,0.00148]
[1772880174902,0.01896641,67998.0,67990.0,0.0002]
[1772880175105,0.01941381,67998.0,67991.0,0.00148]
[1772880175522,0.01941381,67998.0,67990.0,0.0002]
[1772880175906,0.01941381,67998.0,67992.0,0.0002]
[1772880178481,0.01896641,67997.0,67989.0,0.0335413]
[1772880178656,0.02380176,67997.0,67990.0,0.00148]
[1772880179197,0.02424916,67997.0,67990.0,0.00148]
[1772880179564,0.02424916,67997.0,67989.0,0.0750213]
[1772880179986,0.02424916,67997.0,67989.0,0.0735413]
[1772880180163,0.07881623,67997.0,67989.0,0.0750213]
[1772880180569,0.00528275,67997.0,67989.0,0.0750213]
[1772880180881,0.07881615,67997.0,67989.0,0.0750213]
[1772880181989,0.07881615,67997.0,67987.0,0.0737413]
[1772880182191,0.07881615,67997.0,67989.0,0.00148]
[1772880182509,0.07881615,67997.0,67989.0,0.0002]
[1772880182711,0.07881615,67997.0,67989.0,0.00168]
[1772880183261,0.07881615,67997.0,67989.0,0.0002]
[1772880184282,0.07881615,67997.0,67989.0,0.0737413]
[1772880184283,0.0739808,67997.0,67989.0,0.0737413]
[1772880185161,0.0004474,67997.0,67989.0,0.0737413]
[1772880185332,0.07375266,67999.0,67990.0,0.00503293]
[1772880186963,0.07375266,67999.0,67990.0,0.07353927]
[1772880187163,0.07375266,67999.0,67991.0,0.00503293]
[1772880187843,0.07375266,67999.0,67992.0,0.00148]
[1772880193381,0.07375266,67999.0,67992.0,0.0062631]
[1772880198327,0.02954266,67999.0,67992.0,0.0062631]
[1772880199225,0.07353155,68000.0,67992.0,0.0062631]
[1772880199388,0.00022001,67999.0,67992.0,0.0062631]
[1772880203354,0.07375133,67999.0,67992.0,0.0062631]
[1772880204574,0.07375133,67999.0,67992.0,0.00148]
[1772880206552,0.07375133,67999.0,67992.0,0.00168]
[1772880207985,0.00467564,67998.0,67992.0,0.00148]
[1772880208192,0.01904524,67997.0,67992.0,0.00148]
[1772880208533,0.01904524,67995.0,67992.0,0.00148]
[1772880208667,0.02372088,67995.0,67992.0,0.00148]
[1772880209886,0.02372088,67995.0,67989.0,0.05522124]
[1772880210076,0.00467564,67994.0,67990.0,0.00148]
[1772880210271,0.02372088,67993.0,67988.0,0.07354191]
[1772880210476,0.02372088,67993.0,67991.0,0.00148]
[1772880210811,0.07353382,67996.0,67991.0,0.00148]
[1772880211005,0.00467564,67996.0,67991.0,0.00148]
[1772880211187,0.01904524,67995.0,67991.0,0.00148]
[1772880211382,0.02372088,67995.0,67991.0,0.00148]
[1772880211794,0.01904524,67995.0,67991.0,0.00148]
[1772880213138,0.02372088,67995.0,67991.0,0.00148]
[1772880213345,0.07353384,67996.0,67991.0,0.00148]
[1772880213708,0.07353384,67996.0,67989.0,0.07502023]
[1772880214549,0.09287457,67998.0,67988.0,0.00148]
[1772880214550,0.09287565,67997.0,67988.0,0.00148]
[1772880214929,0.09755129,67997.0,67988.0,0.00148]
[1772880215472,0.09755129,67997.0,67987.0,0.0002]
[1772880215676,0.07353265,67997.0,67987.0,0.0002]
[1772880215900,0.02401864,67995.0,67987.0,0.00148]
[1772880216671,0.02401864,67995.0,67988.0,0.07354238]
[1772880218884,0.07353157,67998.0,67988.0,0.07354238]
[1772880221690,0.07353157,67998.0,67988.0,0.07374238]
[1772880225147,0.07353157,67998.0,67988.0,0.07365398]
[1772880228317,0.07375158,67998.0,67988.0,0.07365398]
[1772880242045,0.09316422,67998.0,67988.0,0.07365398]
[1772880242999,0.09810132,67998.0,67988.0,0.07365398]
[1772880248293,0.07375158,67998.0,67988.0,0.07365398]
[1772880248488,0.07375158,67998.0,67988.0,0.06194698]
[1772880251346,0.07375158,67998.0,67988.0,0.06675031]
[1772880265188,0.01882787,67997.0,67980.0,0.07355033]
[1772880265391,0.0471993,67990.0,67980.0,0.07355033]
[1772880265631,0.0471993,67990.0,67981.0,0.00148]
[1772880266439,0.0471993,67990.0,67980.0,0.07503033]
[1772880266839,0.0471993,67990.0,67981.0,0.0002]
[1772880267145,0.0471993,67990.0,67981.0,0.00168]
[1772880267374,0.0735413,67989.0,67981.0,0.0002]
[1772880267523,0.0735413,67989.0,67981.0,0.00168]
[1772880268627,0.0735413,67989.0,67981.0,0.0002]
[1772880271704,0.07354074,67990.0,67981.0,0.0002]
[1772880278992,0.12073927,67991.0,67981.0,0.0002]
[1772880279196,0.00022001,67990.0,67981.0,0.0002]
[1772880280501,0.00022001,67990.0,67982.0,0.00468894]
[1772880281437,0.00022001,67990.0,67983.0,0.07354779]
[1772880281679,0.07376041,67990.0,67983.0,0.07354779]
[1772880282847,0.07376041,67990.0,67982.0,0.07354799]
[1772880285209,0.07376041,67990.0,67980.0,0.07355033]
[1772880285409,0.07376041,67990.0,66100.0,0.00887727]
[1772880285410,0.00460983,67989.0,67974.0,0.00148]
[1772880286016,0.07376041,67990.0,67973.0,0.07355776]
[1772880286017,0.00148,67988.0,67973.0,0.07355776]
[1772880286225,0.00460983,67986.0,67973.0,0.07503776]
[1772880287222,0.00460983,67984.0,67973.0,0.07503776]
[1772880287953,0.00460983,67984.0,67973.0,0.07355776]
[1772880288128,0.00460983,67984.0,67974.0,0.00148]
[1772880288336,0.04725569,67984.0,67971.0,0.0003235]
[1772880288505,0.00460983,67981.0,67971.0,0.0003235]
[1772880289107,0.07355104,67980.0,67971.0,0.0003235]
[1772880289349,0.07816087,67980.0,67971.0,0.0018035]
[1772880289727,0.00460983,67979.0,67971.0,0.0018035]
[1772880290306,0.00460983,67979.0,67971.0,0.0003235]
[1772880291287,0.0735532,67978.0,67967.0,0.00015]
[1772880291501,0.00460983,67977.0,67967.0,0.00015]
[1772880293636,0.07355537,67976.0,67967.0,0.00015]
[1772880294410,0.07355537,67976.0,67962.0,0.00148]
[1772880294411,0.00460983,67975.0,67962.0,0.00148]
[1772880295639,0.07355753,67974.0,67963.0,0.07356944]
[1772880298732,0.07355753,67974.0,67939.0,0.36769293]
[1772880298733,0.01849509,67971.0,67950.0,0.07585636]
[1772880298969,0.01849509,67971.0,67933.0,0.07360193]
[1772880298970,0.01849509,67958.0,67933.0,0.07360193]
[1772880299172,0.00513405,67955.0,67936.0,0.00503422]
[1772880299416,0.00513405,67955.0,67939.0,0.01810511]
[1772880299539,0.00513405,67955.0,67940.0,0.02461933]
[1772880299974,0.07357918,67954.0,67941.0,0.09673259]
[1772880300194,0.07364116,67954.0,67941.0,0.09673259]
[1772880302932,0.07364116,67954.0,67942.0,0.00148]
[1772880306750,0.00513405,67951.0,67938.0,0.07359651]
[1772880306948,0.00513405,67951.0,67941.0,0.00148]
[1772880307554,0.00513405,67951.0,67938.0,0.07359651]
[1772880307758,0.00513405,67951.0,67941.0,0.00148]
[1772880310729,0.07358351,67950.0,67938.0,0.07359651]
[1772880310902,0.00483971,67949.0,67940.0,0.00148]
[1772880314484,0.07358568,67948.0,67937.0,0.07359758]
[1772880314731,0.07842539,67948.0,67940.0,0.00148]
[1772880315041,0.07842539,67948.0,67940.0,0.00168]
[1772880315646,0.07842539,67948.0,67940.0,0.0002]
[1772880315800,0.07358568,67948.0,67940.0,0.0002]
[1772880316021,0.00483971,67947.0,67940.0,0.0002]
[1772880316426,0.07358784,67946.0,67940.0,0.0002]
[1772880317386,0.0471993,67950.0,67940.0,0.0002]
[1772880317387,0.00148,67950.0,67940.0,0.0002]
[1772880318624,0.00148,67950.0,67940.0,0.07379434]
[1772880318846,0.07506367,67950.0,67940.0,0.07379434]
[1772880321729,0.12232704,67950.0,67940.0,0.07379434]
[1772880321929,0.12232704,67950.0,67936.0,0.07359765]
[1772880321930,0.01804586,67949.0,67936.0,0.07359765]
[1772880322132,0.01804586,67949.0,67936.0,0.07507765]
[1772880322133,0.00483971,67948.0,67936.0,0.07507765]
[1772880322931,0.00483971,67948.0,67940.0,0.0002]
[1772880323726,0.07842647,67947.0,67936.0,0.07507765]
[1772880324851,0.07358676,67947.0,67936.0,0.07507765]
[1772880325036,0.07842647,67947.0,67936.0,0.07507765]
[1772880325957,0.00483971,67947.0,67936.0,0.07507765]
[1772880327265,0.00483971,67947.0,67936.0,0.07359765]
[1772880327958,0.00483971,67947.0,67934.0,0.0002]
[1772880327959,0.07358784,67946.0,67934.0,0.0002]
[1772880328161,0.00483971,67945.0,67932.0,0.06191448]
[1772880328712,0.00483971,67945.0,67933.0,0.00148]
[1772880328872,0.00483971,67945.0,67934.0,0.00148]
[1772880329279,0.00483971,67945.0,67932.0,0.06191448]
[1772880329470,0.00483971,67941.0,67929.0,0.07508626]
[1772880329965,0.07359423,67941.0,67928.0,0.07360734]
[1772880330166,0.07359423,67941.0,67929.0,0.02434997]
[1772880331005,0.07359423,67941.0,67933.0,0.0002]
[1772880331942,0.00148,67944.0,67933.0,0.00035]
[1772880332144,0.00148,67949.0,67936.0,0.00485091]
[1772880332317,0.00148,67949.0,67940.0,0.00485091]
[1772880332522,0.00148,67949.0,67940.0,0.02334364]
[1772880335329,0.07358568,67948.0,67941.0,0.07359326]
[1772880335745,0.00148,67949.0,67941.0,0.07359326]
[1772880335952,0.07380146,67952.0,67941.0,0.07359326]
[1772880336417,0.07380146,67952.0,67942.0,0.02334364]
[1772880336967,0.07380146,67952.0,67942.0,0.02482364]
[1772880337421,0.07380146,67952.0,67943.0,0.07359109]
[1772880337823,0.07380139,67952.0,67943.0,0.07359109]
[1772880338000,0.07380139,67952.0,67943.0,0.09707436]
[1772880339311,0.00022001,67952.0,67943.0,0.09707436]
[1772880340103,0.0738613,67954.0,67945.0,0.00499054]
[1772880340393,0.0738613,67954.0,67945.0,0.02348327]
[1772880341330,0.00028199,67954.0,67945.0,0.02348327]
[1772880341565,0.07386123,67954.0,67945.0,0.02348327]
[1772880341968,0.07386123,67954.0,67946.0,0.07358784]
[1772880343135,0.07386123,67954.0,67943.0,0.07359109]
[1772880344983,0.07386123,67954.0,67943.0,0.07858163]
[1772880345298,0.07505706,67956.0,67947.0,0.00499054]
[1772880345498,0.07497516,67956.0,67947.0,0.0238672]
[1772880347944,0.0013981,67956.0,67948.0,0.07358568]
[1772880348102,0.0002015,67957.0,67948.0,0.07358568]
[1772880351006,0.00022001,67959.0,67949.0,0.01849273]
[1772880351241,0.00022001,67959.0,67951.0,0.02348327]
[1772880351440,0.00022001,67956.0,67949.0,0.01849273]
[1772880351653,0.00022001,67956.0,67950.0,0.02348327]
[1772880352076,0.00022001,67956.0,67952.0,0.00499054]
[1772880353357,0.00022001,67959.0,67952.0,0.00499054]
[1772880354175,0.00022001,67959.0,67953.0,0.07358026]
[1772880355182,0.00022001,67963.0,67953.0,0.09207299]
[1772880355348,0.00022001,67963.0,67954.0,0.00499054]
[1772880356260,0.00022001,67963.0,67955.0,0.0735781]
[1772880358886,0.00022001,67959.0,67955.0,0.0735781]
[1772880360356,0.00022001,67963.0,67955.0,0.09336211]
[1772880360563,0.07378688,67966.0,67958.0,0.00475985]
[1772880360740,0.07378688,67966.0,67958.0,0.07357468]
[1772880361480,0.07378688,67966.0,67956.0,0.07357646]
[1772880361792,0.07877766,67966.0,67956.0,0.07357646]
[1772880362767,0.07356835,67964.0,67956.0,0.07357646]
[1772880363043,0.07356835,67964.0,67956.0,0.07340691]
[1772880363969,0.07356835,67964.0,67956.0,0.07323738]
[1772880364154,0.07356835,67964.0,67955.0,0.00148]
[1772880365051,0.07356835,67964.0,67954.0,0.0735781]
[1772880365275,0.07356835,67964.0,67955.0,0.00148]
[1772880366049,0.07356835,67964.0,67954.0,0.0735781]
[1772880366321,0.07356835,67964.0,67955.0,0.07505741]
[1772880367565,0.07356835,67964.0,67955.0,0.07357741]
[1772880367758,0.07356835,67964.0,67955.0,0.07505741]
[1772880369742,0.07855788,67964.0,67955.0,0.07505741]
[1772880372176,0.07877789,67964.0,67955.0,0.07505741]
[1772880377135,0.07877789,67964.0,67955.0,0.0748879]
[1772880379907,0.07877789,67964.0,67955.0,0.0750879]
[1772880380296,0.07877789,67964.0,67955.0,0.07491846]
[1772880398384,0.00520954,67964.0,67955.0,0.00168]
[1772880398795,0.00520954,67964.0,67956.0,0.07357702]
[1772880398796,0.07356944,67963.0,67956.0,0.07357702]
[1772880399002,0.07356835,67964.0,67956.0,0.07357702]
[1772880399221,0.00022001,67966.0,67957.0,0.00455248]
[1772880399523,0.00022001,67966.0,67958.0,0.00455248]
[1772880399930,0.00022001,67964.0,67958.0,0.00455248]
[1772880400351,0.00022001,67964.0,67959.0,0.07357377]
[1772880400972,0.00022001,67964.0,67959.0,0.07812625]
[1772880401558,0.00022001,67964.0,67955.0,0.00168]
[1772880401559,0.00022001,67964.0,67956.0,0.07357652]
[1772880410156,0.00022001,67964.0,67956.0,0.078129]
[1772880410944,0.00022001,67966.0,67958.0,0.00455248]
[1772880412290,0.00022001,67966.0,67959.0,0.07357377]
[1772880412570,0.00022001,67964.0,67959.0,0.07357377]
[1772880412731,0.00022001,67964.0,67960.0,0.00455248]
[1772880413131,0.0002809,67967.0,67961.0,0.00148]
[1772880413331,0.00022001,67968.0,67962.0,0.00455248]
[1772880413667,0.00597001,67970.0,67962.0,0.00455248]
[1772880414547,0.00597001,67970.0,67963.0,0.07356944]
[1772880423383,0.00022001,67973.0,67965.0,0.00461731]
[1772880424083,0.00022001,67973.0,67966.0,0.07356619]
[1772880425865,0.07377871,67973.0,67965.0,0.07356619]
[1772880426101,0.07377871,67973.0,67962.0,0.07357029]
[1772880426449,0.00022001,67970.0,67962.0,0.07357029]
[1772880430235,0.00022001,67970.0,67962.0,0.07848138]
[1772880431018,0.00022001,67970.0,67963.0,0.00491109]
[1772880431601,0.00022001,67973.0,67962.0,0.07357029]
[1772880431817,0.00022001,67973.0,67964.0,0.00491109]
[1772880432916,0.00022001,67973.0,67966.0,0.00491109]
[1772880434268,0.00022001,67973.0,67966.0,0.00474166]
[1772880435233,0.00022001,67973.0,67967.0,0.07356511]
[1772880437049,0.00014671,67973.0,67967.0,0.07356511]
[1772880444246,0.00014671,67973.0,67963.0,0.0002]
[1772880446191,0.00480007,67973.0,67963.0,0.0002]
[1772880449779,0.07370603,67973.0,67957.0,0.07357536]
[1772880449978,0.07370603,67973.0,67950.0,0.00015]
[1772880449979,0.01909125,67969.0,67956.0,0.07377637]
[1772880450178,0.00465336,67967.0,67956.0,0.07377637]
[1772880451891,0.07356619,67966.0,67963.0,0.0002]
[1772880452090,0.00465336,67965.0,67963.0,0.0002]
[1772880452294,0.00465336,67964.0,67963.0,0.0002]
[1772880454250,0.00465336,67964.0,67956.0,0.0002]
[1772880456228,0.07822236,67964.0,67956.0,0.0002]
[1772880462138,0.073569,67964.0,67950.0,0.07373333]
[1772880462336,0.01891666,67961.0,67950.0,0.00015]
[1772880462539,0.00493215,67959.0,67950.0,0.00015]
[1772880464521,0.07357485,67958.0,67956.0,0.0002]
[1772880464833,0.078507,67958.0,67950.0,0.00015]
[1772880471461,0.078507,67958.0,67951.0,0.07358243]
[1772880471662,0.078507,67958.0,67950.0,0.00035]
[1772880471901,0.00493215,67957.0,67949.0,0.0002]
[1772880472117,0.00493215,67957.0,67949.0,0.0001267]
[1772880472621,0.00493215,67954.0,67945.0,0.07371133]
[1772880472779,0.00679573,67954.0,67945.0,0.07371133]
[1772880474216,0.07358026,67953.0,67945.0,0.07371133]
[1772880479076,0.07358026,67953.0,67945.0,0.07391133]
[1772880489487,0.0783906,67953.0,67945.0,0.0003227]
[1772880490127,0.0783906,67953.0,67944.0,0.00148]
[1772880491158,0.0783906,67953.0,67944.0,0.00148]
[1772880494756,0.0783906,67953.0,67944.0,0.00168]
[1772880494931,0.07861061,67953.0,67944.0,0.00168]
[1772880498818,0.07380027,67953.0,67944.0,0.00168]
[1772880499232,0.07358243,67951.0,67944.0,0.00168]
[1772880500455,0.07505484,67959.0,67947.0,0.0047635]
[1772880500664,0.00022001,67960.0,67950.0,0.0047635]
[1772880500959,0.00022001,67960.0,67951.0,0.0047635]
[1772880501306,0.00022001,67960.0,67952.0,0.07358135]
[1772880501549,0.07379291,67960.0,67952.0,0.07834485]
[1772880501854,0.07379291,67960.0,67947.0,0.07396978]
[1772880501855,0.00481034,67959.0,67947.0,0.07396978]
[1772880503468,0.07357485,67958.0,67947.0,0.07396978]
[1772880507485,0.07357485,67958.0,67948.0,0.0047635]
[1772880507663,0.07379453,67959.0,67948.0,0.0047635]
[1772880515202,0.07379453,67959.0,67949.0,0.0735846]
[1772880519387,0.07379453,67959.0,67947.0,0.07396981]
[1772880519605,0.07839493,67959.0,67947.0,0.07396981]
[1772880521332,0.07839493,67959.0,67948.0,0.0002]
[1772880527429,0.07379453,67959.0,67948.0,0.0002]
[1772880527641,0.07379453,67959.0,67949.0,0.00458144]
[1772880528816,0.0001227,67962.0,67951.0,0.0195094]
[1772880529031,0.07378846,67964.0,67954.0,0.00458144]
[1772880529232,0.07378846,67964.0,67956.0,0.00458144]
[1772880529433,0.07378846,67964.0,67956.0,0.07815738]
[1772880529741,0.00022001,67959.0,67957.0,0.00458144]
[1772880531165,0.00022001,67959.0,67957.0,0.07357565]
[1772880531375,0.00022001,67959.0,67958.0,0.00458144]
[1772880534301,0.00022001,67959.0,67956.0,0.07815738]
[1772880542637,0.00022001,67959.0,67956.0,0.07357594]
[1772880542837,0.00022001,67959.0,67953.0,0.07358026]
[1772880545225,0.00022001,67959.0,67953.0,0.07853314]
[1772880545566,0.00022001,67959.0,67954.0,0.00495288]
[1772880546550,1e-08,67967.0,67955.0,0.01820407]
[1772880546774,0.07377443,67977.0,67958.0,0.00495288]
[1772880546954,0.07377443,67977.0,67960.0,0.00495288]
[1772880547151,0.0048964,67975.0,67959.0,0.07357377]
[1772880547403,0.01878824,67972.0,67960.0,0.00148]
[1772880547608,0.02368464,67972.0,67960.0,0.00148]
[1772880549497,0.07356078,67971.0,67961.0,0.00148]
[1772880552502,0.07355939,67973.0,67962.0,0.07357052]
[1772880554129,0.00022001,67977.0,67962.0,0.07357052]
[1772880554462,0.00022001,67977.0,67965.0,0.09177134]
[1772880554657,0.00022001,67977.0,67966.0,0.00496983]
[1772880554911,0.00022001,67977.0,67968.0,0.00496983]
[1772880555113,0.00170001,67980.0,67968.0,0.00496983]
[1772880555306,0.00170001,67980.0,67969.0,0.00496983]
[1772880555506,0.00022001,67980.0,67969.0,0.00496983]
[1772880556234,0.07376464,67986.0,67972.0,0.01820407]
[1772880556457,0.00148,67985.0,67974.0,0.00496983]
[1772880556659,0.00148,67985.0,67975.0,0.07852628]
[1772880557824,0.07376713,67984.0,67975.0,0.07852628]
[1772880559446,0.00022001,67977.0,67975.0,0.07355645]
[1772880562318,0.00022001,67977.0,67974.0,0.07355695]
[1772880562978,0.00022001,67977.0,67975.0,0.07355645]
[1772880563790,0.07354782,67983.0,67975.0,0.07355645]
[1772880563976,0.00037001,67984.0,67976.0,0.00496983]
[1772880564376,0.00022001,67986.0,67976.0,0.00496983]
[1772880564976,0.07366453,67989.0,67979.0,0.01820407]
[1772880564977,0.0001227,67989.0,67979.0,0.01820407]
[1772880565180,0.00181961,67991.0,67981.0,0.01820407]
[1772880565500,0.07353399,67996.0,67980.0,0.00148]
[1772880565501,0.07353443,67996.0,67983.0,0.00496983]
[1772880566181,0.02376114,67995.0,67980.0,0.00148]
[1772880566587,0.01878824,67994.0,67980.0,0.00148]
[1772880567012,0.07353698,67993.0,67982.0,0.07354888]
[1772880567630,0.00022001,67984.0,67983.0,0.00148]
[1772880568419,0.00022001,67984.0,67982.0,0.07354888]
[1772880568617,0.00022001,67984.0,67983.0,0.00148]
[1772880569016,0.00022001,67984.0,67983.0,0.07502779]
[1772880569387,0.00022001,67984.0,67983.0,0.07354779]
[1772880570236,0.00022001,67984.0,67975.0,0.07355645]
[1772880570453,0.00022001,67984.0,67979.0,0.0013701]
[1772880572302,0.00022001,67984.0,67979.0,0.07492202]
[1772880576772,0.0737668,67984.0,67979.0,0.07492202]
[1772880577329,0.0737668,67984.0,67979.0,0.0013701]
[1772880581556,0.0737668,67984.0,67979.0,0.00148]
[1772880581800,0.07841909,67984.0,67976.0,0.07355479]
[1772880581955,0.02326043,67983.0,67976.0,0.07355479]
[1772880582160,0.02326043,67983.0,67979.0,0.0002]
[1772880583246,0.07354833,67983.0,67976.0,0.05355479]
[1772880583448,0.00465229,67981.0,67975.0,0.07355645]
[1772880583646,0.07354833,67983.0,67976.0,0.07355479]
[1772880584464,0.07376695,67984.0,67976.0,0.07841039]
[1772880588323,0.07376695,67984.0,67975.0,0.05355645]
[1772880589844,0.07376695,67984.0,67976.0,0.07355479]
[1772880590349,0.00465229,67983.0,67973.0,0.00148]
[1772880590494,0.00473135,67983.0,67973.0,0.00148]
[1772880590692,0.00473135,67983.0,67970.0,0.07371157]
[1772880590903,0.00473135,67983.0,67972.0,0.00148]
[1772880591130,0.00473135,67983.0,67970.0,0.07371157]
[1772880591479,0.00473135,67983.0,67971.0,0.00148]
[1772880591667,0.00473135,67983.0,67970.0,0.07371157]
[1772880591813,0.00473135,67983.0,67972.0,0.00148]
[1772880592015,0.00465229,67981.0,67972.0,0.00148]
[1772880592687,0.00465229,67981.0,67971.0,0.07355979]
[1772880592917,0.00465229,67981.0,67972.0,0.00131065]
[1772880593285,0.00465229,67981.0,67972.0,0.00148]
[1772880594339,0.07820333,67980.0,67972.0,0.00148]
[1772880594748,0.07820333,67980.0,67970.0,0.0001498]
[1772880594959,0.07820333,67980.0,67972.0,0.00148]
[1772880595361,0.07820333,67980.0,67971.0,0.00148]
[1772880595538,0.07355104,67980.0,67970.0,0.0001498]
[1772880595760,0.00465229,67979.0,67971.0,0.00148]
[1772880595964,0.00465229,67979.0,67970.0,0.0001498]
[1772880596574,0.0735532,67978.0,67970.0,0.0001498]
[1772880597152,0.0735532,67978.0,67972.0,0.0002]
[1772880598193,0.004995,67977.0,67968.0,0.07524186]
[1772880598628,0.07355537,67976.0,67968.0,0.07376186]
[1772880598858,0.004995,67975.0,67968.0,0.07524186]
[1772880599067,0.004995,67975.0,67968.0,0.07376186]